bitfinex/quotes_BTCUSD_20241014
["timestamp","ask_amount","ask_price","bid_price","bid_amount"]
[1728908464494,0.92649135,64959.0,64958.0,0.000823]
[1728908464717,0.92849135,64959.0,64958.0,0.000823]
[1728908464941,0.76903777,64959.0,64958.0,0.000823]
[1728908465898,0.62939777,64959.0,64958.0,0.000823]
[1728908466378,1.20800477,64959.0,64958.0,0.000823]
[1728908474932,0.372476,64945.0,64944.0,0.000823]
[1728908475151,0.54592958,64945.0,64944.0,0.000823]
[1728908476277,0.55992958,64945.0,64944.0,0.000823]
[1728908476500,0.57192958,64945.0,64944.0,0.000823]
[1728908476714,0.57785233,64945.0,64944.0,0.000823]
[1728908480284,0.91183438,64945.0,64944.0,0.000823]
[1728908480515,2.61595238,64945.0,64944.0,0.000823]
[1728908480764,2.40003638,64945.0,64944.0,0.000823]
[1728908481034,2.33360238,64945.0,64944.0,0.000823]
[1728908481488,2.30702638,64945.0,64944.0,0.000823]
[1728908481715,1.93989738,64945.0,64944.0,0.000823]
[1728908481963,1.95389738,64945.0,64944.0,0.000823]
[1728908482190,1.92589738,64945.0,64944.0,0.000823]
[1728908482413,1.93989738,64945.0,64944.0,0.000823]
[1728908482638,1.96929065,64945.0,64944.0,0.000823]
[1728908482889,1.94129065,64945.0,64944.0,0.000823]
[1728908483120,1.96929065,64945.0,64944.0,0.000823]
[1728908483360,1.82384665,64945.0,64944.0,0.000823]
[1728908483591,1.74205665,64945.0,64944.0,0.000823]
[1728908483824,1.74005665,64945.0,64944.0,0.000823]
[1728908484021,1.74205665,64945.0,64944.0,0.000823]
[1728908484965,1.56860307,64945.0,64944.0,0.000823]
[1728908485233,1.74205665,64945.0,64944.0,0.000823]
[1728908486854,1.56860307,64945.0,64944.0,0.000823]
[1728908487086,0.94315507,64945.0,64944.0,0.000823]
[1728908488959,1.11660865,64945.0,64944.0,0.000823]
[1728908489883,1.08860865,64945.0,64944.0,0.000823]
[1728908490103,1.10260865,64945.0,64944.0,0.000823]
[1728908490363,1.11660865,64945.0,64944.0,0.000823]
[1728908490580,1.08860865,64945.0,64944.0,0.000823]
[1728908490803,1.10260865,64945.0,64944.0,0.000823]
[1728908491049,1.11660865,64945.0,64944.0,0.000823]
[1728908492408,1.08860865,64945.0,64944.0,0.000823]
[1728908492679,1.11660865,64945.0,64944.0,0.000823]
[1728908492924,1.11460865,64945.0,64944.0,0.000823]
[1728908493141,1.11660865,64945.0,64944.0,0.000823]
[1728908497015,1.01042765,64945.0,64944.0,0.000823]
[1728908497238,2.37201165,64945.0,64944.0,0.000823]
[1728908497484,1.65361065,64945.0,64944.0,0.000823]
[1728908498204,1.65361065,64945.0,64931.0,0.23125487]
[1728908498205,0.63216058,64932.0,64931.0,0.23125487]
[1728908498440,0.95914263,64932.0,64931.0,0.23125487]
[1728908498685,0.95914263,64932.0,64928.0,0.000822]
[1728908498686,0.261014,64929.0,64928.0,0.000822]
[1728908498924,1.35280347,64929.0,64928.0,0.000822]
[1728908499162,1.34262347,64929.0,64928.0,0.000822]
[1728908500329,1.54407705,64929.0,64928.0,0.000822]
[1728908501070,0.91738147,64929.0,64928.0,0.000822]
[1728908502028,0.92333281,64929.0,64928.0,0.000822]
[1728908503921,0.75980081,64929.0,64928.0,0.000822]
[1728908505357,0.46949381,64929.0,64928.0,0.000822]
[1728908505577,0.79550081,64929.0,64928.0,0.000822]
[1728908506271,0.46949381,64929.0,64928.0,0.000822]
[1728908506497,0.44149381,64929.0,64928.0,0.000822]
[1728908507207,0.34149381,64929.0,64928.0,0.000822]
[1728908507724,0.32749381,64929.0,64928.0,0.000822]
[1728908507959,0.35049381,64929.0,64928.0,0.000822]
[1728908508442,0.45049381,64929.0,64928.0,0.000822]
[1728908508689,0.43649381,64929.0,64928.0,0.000822]
[1728908508928,0.45049381,64929.0,64928.0,0.000822]
[1728908509163,0.46449381,64929.0,64928.0,0.000822]
[1728908519694,0.51051221,64929.0,64928.0,0.000822]
[1728908521968,0.46449381,64929.0,64928.0,0.000822]
[1728908522181,0.53352142,64929.0,64928.0,0.000822]
[1728908523847,0.123,64928.0,64921.0,0.05323887]
[1728908524091,0.27703,64922.0,64921.0,0.05323887]
[1728908524312,0.43055847,64922.0,64921.0,0.05323887]
[1728908524565,0.43055847,64922.0,64921.0,0.20727187]
[1728908524566,0.25352847,64922.0,64921.0,0.20727187]
[1728908524799,0.25352847,64922.0,64921.0,0.154033]
[1728908525028,0.25352847,64922.0,64921.0,0.15937182]
[1728908526025,0.26252847,64922.0,64921.0,0.15937182]
[1728908526249,0.27452847,64922.0,64921.0,0.15937182]
[1728908526691,0.27452847,64922.0,64921.0,0.25477182]
[1728908527367,0.27452847,64922.0,64921.0,0.10073882]
[1728908527594,0.27452847,64922.0,64921.0,0.25477182]
[1728908528044,0.27452847,64922.0,64921.0,0.25477249]
[1728908529441,0.27452847,64922.0,64921.0,0.15937249]
[1728908531055,0.42855847,64922.0,64921.0,0.00533949]
[1728908531057,0.42855847,64922.0,64915.0,0.1727]
[1728908531058,0.1,64919.0,64917.0,0.154042]
[1728908531306,0.1,64919.0,64915.0,0.480793]
[1728908531307,0.25352847,64919.0,64918.0,0.15937919]
[1728908531796,0.1,64919.0,64918.0,0.15937919]
[1728908532045,0.25996534,64929.0,64925.0,0.154022]
[1728908532279,0.33125487,64926.0,64925.0,0.154022]
[1728908532509,0.33125487,64926.0,64922.0,0.30806]
[1728908532510,0.1,64925.0,64923.0,0.154026]
[1728908532739,0.25352847,64924.0,64923.0,0.154026]
[1728908532966,0.25352847,64924.0,64916.0,0.308089]
[1728908532967,0.006,64919.0,64916.0,0.308089]
[1728908533193,0.015,64919.0,64918.0,0.462117]
[1728908533425,0.015,64919.0,64918.0,0.46746077]
[1728908533426,0.009,64919.0,64918.0,0.46746077]
[1728908534634,0.25352847,64919.0,64918.0,0.00534377]
[1728908535080,0.40756647,64919.0,64918.0,0.00534377]
[1728908535753,0.42256647,64919.0,64918.0,0.00534377]
[1728908536230,0.26252847,64919.0,64918.0,0.00534377]
[1728908536457,0.26852847,64919.0,64918.0,0.00534377]
[1728908537612,0.27467452,64919.0,64918.0,0.00534377]
[1728908538844,0.27467452,64919.0,64914.0,0.462142]
[1728908539072,0.15352847,64918.0,64915.0,0.00534693]
[1728908539312,0.1,64917.0,64916.0,0.00534693]
[1728908539539,0.25352847,64917.0,64916.0,0.00534693]
[1728908539760,0.25352847,64917.0,64916.0,0.01572468]
[1728908539982,0.25352847,64917.0,64916.0,0.00534693]
[1728908540205,0.25352847,64917.0,64916.0,0.01572468]
[1728908541335,0.43057047,64917.0,64916.0,0.01572468]
[1728908541562,0.43057047,64917.0,64909.0,0.000823]
[1728908541563,0.154054,64913.0,64909.0,0.000823]
[1728908541794,0.15352847,64912.0,64910.0,0.02546649]
[1728908542019,0.15352847,64912.0,64911.0,0.00534746]
[1728908542265,0.15352847,64912.0,64911.0,0.02546645]
[1728908542732,0.15352847,64912.0,64911.0,0.01690932]
[1728908542955,0.16352847,64912.0,64911.0,0.01690932]
[1728908543185,0.16352847,64912.0,64911.0,0.01690927]
[1728908543416,0.15352847,64912.0,64911.0,0.01690927]
[1728908543875,0.16352847,64912.0,64911.0,0.01690927]
[1728908545258,0.16352847,64912.0,64911.0,0.15940441]
[1728908546675,0.01,64912.0,64911.0,0.15940441]
[1728908547330,0.01,64912.0,64911.0,0.17951924]
[1728908551757,0.01,64912.0,64911.0,0.18034324]
[1728908552482,0.01,64912.0,64911.0,0.18034192]
[1728908554842,0.01,64912.0,64911.0,0.18034163]
[1728908556014,0.01,64912.0,64911.0,0.19079338]
[1728908558748,0.01,64912.0,64911.0,0.19079637]
[1728908558970,0.01,64912.0,64911.0,0.19079897]
[1728908559412,0.01,64912.0,64911.0,0.03674197]
[1728908559864,0.01,64912.0,64911.0,0.02818478]
[1728908560561,0.01,64912.0,64911.0,0.18224178]
[1728908562634,0.01,64912.0,64911.0,0.18224287]
[1728908562870,0.01,64912.0,64911.0,0.19380751]
[1728908563092,0.01,64912.0,64911.0,0.18224604]
[1728908564487,0.01,64912.0,64911.0,0.02818904]
[1728908565140,0.01,64912.0,64911.0,0.1706814]
[1728908565365,0.01,64912.0,64911.0,0.18224965]
[1728908566481,0.31758247,64912.0,64911.0,0.02819265]
[1728908566693,0.31758247,64912.0,64911.0,0.0166244]
[1728908567168,0.55742943,64912.0,64911.0,0.01127575]
[1728908567593,0.55742943,64912.0,64911.0,0.000824]
[1728908568047,0.55742943,64912.0,64911.0,0.01127575]
[1728908571927,0.44058247,64912.0,64911.0,0.01127575]
[1728908572152,0.28652847,64912.0,64911.0,0.01127575]
[1728908572380,0.44058247,64912.0,64911.0,0.01127575]
[1728908578982,0.44058247,64912.0,64911.0,0.000824]
[1728908579220,0.44058247,64912.0,64911.0,0.01146291]
[1728908579454,0.44058247,64912.0,64911.0,0.000824]
[1728908579686,0.44058247,64912.0,64911.0,0.01146291]
[1728908579913,0.65202943,64912.0,64911.0,0.000824]
[1728908580134,0.72702943,64912.0,64911.0,0.000824]
[1728908580360,0.77317096,64912.0,64911.0,0.000824]
[1728908580630,0.79624173,64912.0,64911.0,0.000824]
[1728908580878,0.78624173,64912.0,64911.0,0.000824]
[1728908581349,0.73102943,64912.0,64911.0,0.000824]
[1728908581806,0.71702943,64912.0,64911.0,0.000824]
[1728908582031,0.73102943,64912.0,64911.0,0.000824]
[1728908582497,0.77715673,64912.0,64911.0,0.000824]
[1728908583675,0.89900369,64912.0,64911.0,0.000824]
[1728908583902,0.85487639,64912.0,64911.0,0.000824]
[1728908584147,3.68357339,64912.0,64911.0,0.000824]
[1728908584366,3.62158839,64912.0,64911.0,0.000824]
[1728908584601,3.59650739,64912.0,64911.0,0.000824]
[1728908584846,3.05719439,64912.0,64911.0,0.000824]
[1728908585080,2.13110339,64912.0,64911.0,0.000824]
[1728908585763,2.12910339,64912.0,64911.0,0.000824]
[1728908585984,1.41237639,64912.0,64911.0,0.000824]
[1728908586206,1.29552943,64912.0,64911.0,0.000824]
[1728908586429,1.41071268,64912.0,64911.0,0.000824]
[1728908586661,0.99855968,64912.0,64911.0,0.000824]
[1728908586890,0.73602943,64912.0,64911.0,0.000824]
[1728908587145,0.82818453,64912.0,64911.0,0.000824]
[1728908587396,0.73602943,64912.0,64911.0,0.000824]
[1728908589448,0.80511301,64912.0,64911.0,0.000824]
[1728908589939,0.81911301,64912.0,64911.0,0.000824]
[1728908590654,0.81411301,64912.0,64911.0,0.000824]
[1728908590909,0.75002943,64912.0,64911.0,0.000824]
[1728908591123,0.79607862,64912.0,64911.0,0.000824]
[1728908591370,0.74502943,64912.0,64911.0,0.000824]
[1728908591636,0.51058247,64912.0,64911.0,0.000824]
[1728908591857,0.62742943,64912.0,64911.0,0.000824]
[1728908592823,0.65042943,64912.0,64911.0,0.000824]
[1728908597973,0.91428919,64912.0,64911.0,0.000824]
[1728908598218,1.09910651,64912.0,64911.0,0.000824]
[1728908598451,1.12213905,64912.0,64911.0,0.000824]
[1728908599404,1.12215357,64912.0,64911.0,0.000824]
[1728908599908,1.10815357,64912.0,64911.0,0.000824]
[1728908600173,1.03409171,64912.0,64911.0,0.000824]
[1728908600404,1.04809171,64912.0,64911.0,0.000824]
[1728908600644,1.06209171,64912.0,64911.0,0.000824]
[1728908600884,1.03409171,64912.0,64911.0,0.000824]
[1728908601121,1.04809171,64912.0,64911.0,0.000824]
[1728908601314,1.06209171,64912.0,64911.0,0.000824]
[1728908602025,1.59044671,64912.0,64911.0,0.000824]
[1728908602468,1.59244671,64912.0,64911.0,0.000824]
[1728908603164,1.47526953,64912.0,64911.0,0.000824]
[1728908603380,1.59242663,64912.0,64911.0,0.000824]
[1728908604522,1.56155463,64912.0,64911.0,0.000824]
[1728908605929,0.85256057,64912.0,64911.0,0.000824]
[1728908606157,0.70447722,64912.0,64911.0,0.000824]
[1728908606630,0.63538247,64912.0,64911.0,0.000824]
[1728908607570,0.72750847,64912.0,64911.0,0.000824]
[1728908607836,0.93239247,64912.0,64911.0,0.000824]
[1728908608066,1.02452254,64912.0,64911.0,0.000824]
[1728908608780,1.06773534,64912.0,64911.0,0.000824]
[1728908608998,1.04755506,64912.0,64911.0,0.000824]
[1728908609877,1.04756315,64912.0,64911.0,0.000824]
[1728908610335,0.93239247,64912.0,64911.0,0.000824]
[1728908610558,0.85758528,64912.0,64911.0,0.000824]
[1728908610777,0.74239947,64912.0,64911.0,0.000824]
[1728908612132,0.73739947,64912.0,64911.0,0.000824]
[1728908612354,0.22762149,64912.0,64911.0,0.000824]
[1728908612603,0.33558247,64912.0,64911.0,0.000824]
[1728908612888,0.32158247,64912.0,64911.0,0.000824]
[1728908613120,0.32158247,64912.0,64911.0,0.01158778]
[1728908613359,0.32158247,64912.0,64911.0,0.000824]
[1728908613590,0.33558247,64912.0,64911.0,0.01158778]
[1728908613841,0.15352847,64912.0,64911.0,0.000824]
[1728908614080,0.16752847,64912.0,64911.0,0.000824]
[1728908614317,0.18152847,64912.0,64911.0,0.01158778]
[1728908615340,0.18152847,64912.0,64911.0,0.08958778]
[1728908615341,0.28152847,64912.0,64911.0,0.08958778]
[1728908615571,0.28152847,64912.0,64911.0,0.24364478]
[1728908615797,0.28152847,64912.0,64911.0,0.08958778]
[1728908616019,0.28152847,64912.0,64911.0,0.01158778]
[1728908618270,0.43558247,64912.0,64911.0,0.01158778]
[1728908618931,0.28152847,64912.0,64911.0,0.01158778]
[1728908619188,0.43558247,64912.0,64911.0,0.01158778]
[1728908619405,0.28152847,64912.0,64911.0,0.01158778]
[1728908620273,0.43558247,64912.0,64911.0,0.01158778]
[1728908623528,0.28152847,64912.0,64911.0,0.01158778]
[1728908625608,0.43558247,64912.0,64911.0,0.01158778]
[1728908628002,0.28152847,64912.0,64911.0,0.01158778]
[1728908628311,0.28152847,64912.0,64911.0,0.24514478]
[1728908628543,0.28152847,64912.0,64911.0,0.01158778]
[1728908628975,0.43558247,64912.0,64911.0,0.01158778]
[1728908629538,0.43558247,64912.0,64911.0,0.000824]
[1728908631716,0.43558247,64912.0,64911.0,0.01158778]
[1728908631954,0.43558247,64912.0,64911.0,0.000824]
[1728908633368,0.43558247,64912.0,64911.0,0.01158778]
[1728908633596,0.43521247,64912.0,64911.0,0.000824]
[1728908633815,0.43521247,64912.0,64911.0,0.01158778]
[1728908634041,0.43521247,64912.0,64911.0,0.000824]
[1728908634266,0.43521247,64912.0,64911.0,0.01158778]
[1728908634490,0.43521247,64912.0,64911.0,0.000824]
[1728908634678,0.43521247,64912.0,64911.0,0.01158778]
[1728908636605,0.43521247,64912.0,64911.0,0.000824]
[1728908638702,0.43521247,64912.0,64911.0,0.01158778]
[1728908638915,0.43521247,64912.0,64911.0,0.000824]
[1728908639143,0.66669098,64912.0,64911.0,0.000824]
[1728908639390,0.79138607,64912.0,64911.0,0.000824]
[1728908639588,0.81943362,64912.0,64911.0,0.000824]
[1728908639853,0.80543362,64912.0,64911.0,0.000824]
[1728908640324,0.7025447,64912.0,64911.0,0.000824]
[1728908640541,0.61441247,64912.0,64911.0,0.000824]
[1728908640768,0.67450063,64912.0,64911.0,0.000824]
[1728908641216,0.66050077,64912.0,64911.0,0.000824]
[1728908641473,0.67450077,64912.0,64911.0,0.000824]
[1728908641706,0.66050077,64912.0,64911.0,0.000824]
[1728908642414,0.67450077,64912.0,64911.0,0.000824]
[1728908642867,0.66050077,64912.0,64911.0,0.000824]
[1728908643090,0.67450077,64912.0,64911.0,0.000824]
[1728908643283,0.66050077,64912.0,64911.0,0.000824]
[1728908644236,0.67450077,64912.0,64911.0,0.000824]
[1728908644477,0.66050077,64912.0,64911.0,0.000824]
[1728908644747,0.67450077,64912.0,64911.0,0.000824]
[1728908645679,0.6745069,64912.0,64911.0,0.000824]
[1728908645913,0.74529098,64912.0,64911.0,0.000824]
[1728908646136,0.75029098,64912.0,64911.0,0.000824]
[1728908646360,0.86552707,64912.0,64911.0,0.000824]
[1728908646806,0.75029098,64912.0,64911.0,0.000824]
[1728908647030,0.75229098,64912.0,64911.0,0.000824]
[1728908647519,0.72429098,64912.0,64911.0,0.000824]
[1728908647752,0.72229098,64912.0,64911.0,0.000824]
[1728908647984,0.73629098,64912.0,64911.0,0.000824]
[1728908648216,0.72229098,64912.0,64911.0,0.000824]
[1728908648446,0.73629098,64912.0,64911.0,0.000824]
[1728908648673,0.75029098,64912.0,64911.0,0.000824]
[1728908649403,0.61941247,64912.0,64911.0,0.000824]
[1728908649635,0.63341247,64912.0,64911.0,0.000824]
[1728908652934,0.75229098,64912.0,64911.0,0.000824]
[1728908653871,0.88807098,64912.0,64911.0,0.000824]
[1728908654102,0.88607098,64912.0,64911.0,0.000824]
[1728908654774,0.87207098,64912.0,64911.0,0.000824]
[1728908655006,0.75519247,64912.0,64911.0,0.000824]
[1728908655235,0.87040899,64912.0,64911.0,0.000824]
[1728908655458,0.85640899,64912.0,64911.0,0.000824]
[1728908655680,0.97329891,64912.0,64911.0,0.000824]
[1728908655907,0.98929891,64912.0,64911.0,0.000824]
[1728908656365,0.98729891,64912.0,64911.0,0.000824]
[1728908656588,0.99094691,64912.0,64911.0,0.000824]
[1728908656801,1.00494691,64912.0,64911.0,0.000824]
[1728908657534,0.88971898,64912.0,64911.0,0.000824]
[1728908657749,1.00496925,64912.0,64911.0,0.000824]
[1728908657970,0.88971898,64912.0,64911.0,0.000824]
[1728908660314,0.88771898,64912.0,64911.0,0.000824]
[1728908660999,0.77084047,64912.0,64911.0,0.000824]
[1728908661463,0.88771898,64912.0,64911.0,0.000824]
[1728908661921,0.88971898,64912.0,64911.0,0.000824]
[1728908662616,1.00287785,64912.0,64911.0,0.000824]
[1728908662840,1.00487785,64912.0,64911.0,0.000824]
[1728908663742,1.00486411,64912.0,64911.0,0.000824]
[1728908663984,0.88971898,64912.0,64911.0,0.000824]
[1728908666669,1.02795656,64912.0,64911.0,0.000824]
[1728908666890,0.88971898,64912.0,64911.0,0.000824]
[1728908667821,0.87571898,64912.0,64911.0,0.000824]
[1728908668049,0.86171898,64912.0,64911.0,0.000824]
[1728908668279,0.99985244,64912.0,64911.0,0.000824]
[1728908668522,1.01385244,64912.0,64911.0,0.000824]
[1728908669795,0.88771898,64912.0,64911.0,0.000824]
[1728908670050,0.75193898,64912.0,64911.0,0.000824]
[1728908670514,1.27705298,64912.0,64911.0,0.000824]
[1728908674981,1.27905298,64912.0,64911.0,0.000824]
[1728908675969,1.27705298,64912.0,64911.0,0.000824]
[1728908676416,1.32226578,64912.0,64911.0,0.000824]
[1728908677133,0.007,64906.0,64905.0,0.000823]
[1728908677392,0.69054936,64906.0,64905.0,0.000823]
[1728908677650,1.16388498,64906.0,64905.0,0.000823]
[1728908677892,1.16588498,64906.0,64905.0,0.000823]
[1728908678141,1.34018498,64906.0,64905.0,0.000823]
[1728908678404,1.45706349,64906.0,64905.0,0.000823]
[1728908678638,1.35418498,64906.0,64905.0,0.000823]
[1728908678885,1.47106349,64906.0,64905.0,0.000823]
[1728908679104,1.60913787,64906.0,64905.0,0.000823]
[1728908679637,1.62313787,64906.0,64905.0,0.000823]
[1728908679885,1.51227802,64906.0,64905.0,0.000823]
[1728908680111,1.48427802,64906.0,64905.0,0.000823]
[1728908680596,1.49627802,64906.0,64905.0,0.000823]
[1728908680823,1.34420364,64906.0,64905.0,0.000823]
[1728908681076,1.37220364,64906.0,64905.0,0.000823]
[1728908682463,1.37420364,64906.0,64905.0,0.000823]
[1728908683649,1.37220364,64906.0,64905.0,0.000823]
[1728908683909,1.52800846,64906.0,64905.0,0.000823]
[1728908684152,1.38993408,64906.0,64905.0,0.000823]
[1728908684875,1.37593408,64906.0,64905.0,0.000823]
[1728908685108,1.50681259,64906.0,64905.0,0.000823]
[1728908685335,1.38993408,64906.0,64905.0,0.000823]
[1728908685559,1.50681259,64906.0,64905.0,0.000823]
[1728908685836,1.49281259,64906.0,64905.0,0.000823]
[1728908686098,1.50681259,64906.0,64905.0,0.000823]
[1728908687060,0.452897,64894.0,64891.0,0.23125487]
[1728908687288,0.69855079,64894.0,64891.0,0.23125487]
[1728908687514,0.8154293,64894.0,64893.0,0.01203892]
[1728908687744,0.8154293,64894.0,64893.0,0.000823]
[1728908687991,1.2065313,64894.0,64893.0,0.000823]
[1728908688473,1.2205313,64894.0,64893.0,0.000823]
[1728908688698,1.2065313,64894.0,64893.0,0.000823]
[1728908688931,0.6446293,64894.0,64893.0,0.000823]
[1728908689157,0.64154476,64894.0,64893.0,0.000823]
[1728908689639,0.5864523,64894.0,64893.0,0.000823]
[1728908690110,0.5724523,64894.0,64893.0,0.000823]
[1728908690342,0.5864523,64894.0,64893.0,0.000823]
[1728908690576,0.6555457,64894.0,64893.0,0.000823]
[1728908690800,0.46957379,64894.0,64893.0,0.000823]
[1728908691243,0.53866396,64894.0,64893.0,0.000823]
[1728908691468,0.46957379,64894.0,64893.0,0.000823]
[1728908693139,0.53866581,64894.0,64893.0,0.000823]
[1728908694050,0.46957379,64894.0,64893.0,0.000823]
[1728908697963,0.46957379,64894.0,64884.0,0.23125487]
[1728908697964,0.254118,64885.0,64884.0,0.22889587]
[1728908698200,0.43064647,64885.0,64884.0,0.22889587]
[1728908698443,0.43064647,64885.0,64880.0,0.083]
[1728908698444,0.277122,64884.0,64880.0,0.083]
[1728908698696,0.15352847,64883.0,64880.0,0.083]
[1728908698936,0.1,64882.0,64880.0,0.083]
[1728908699172,0.40765647,64881.0,64880.0,0.083]
[1728908699404,0.25352847,64881.0,64880.0,0.083]
[1728908700831,0.25413,64880.0,64879.0,0.000823]
[1728908701097,0.52453698,64880.0,64879.0,0.000823]
[1728908701811,0.40765847,64880.0,64879.0,0.000823]
[1728908702049,0.25352847,64880.0,64879.0,0.000823]
[1728908702774,0.26752847,64880.0,64879.0,0.000823]
[1728908703261,0.49494842,64880.0,64879.0,0.000823]
[1728908703482,0.44465847,64880.0,64879.0,0.000823]
[1728908703976,0.43065847,64880.0,64879.0,0.000823]
[1728908705210,0.44065847,64880.0,64879.0,0.000823]
[1728908705880,0.44265847,64880.0,64879.0,0.000823]
[1728908706120,0.45465847,64880.0,64879.0,0.000823]
[1728908706585,0.44265847,64880.0,64879.0,0.000823]
[1728908707527,0.45665847,64880.0,64879.0,0.000823]
[1728908708223,0.44465847,64880.0,64879.0,0.000823]
[1728908708467,0.45865847,64880.0,64879.0,0.000823]
[1728908708733,0.44465847,64880.0,64879.0,0.000823]
[1728908709195,0.45865847,64880.0,64879.0,0.000823]
[1728908709440,0.44465847,64880.0,64879.0,0.000823]
[1728908709938,0.45865847,64880.0,64879.0,0.000823]
[1728908710452,0.44465847,64880.0,64879.0,0.000823]
[1728908710697,0.43565847,64880.0,64879.0,0.000823]
[1728908711428,0.43565847,64880.0,64879.0,0.0091034]
[1728908711895,0.43565847,64880.0,64879.0,0.000823]
[1728908713588,0.45865847,64880.0,64879.0,0.000823]
[1728908715770,0.50473551,64880.0,64879.0,0.000823]
[1728908716013,0.47673551,64880.0,64879.0,0.000823]
[1728908716262,0.50473551,64880.0,64879.0,0.000823]
[1728908716493,0.70925847,64880.0,64879.0,0.000823]
[1728908716745,0.76437403,64880.0,64879.0,0.000823]
[1728908716983,0.154163,64866.0,64865.0,0.23125487]
[1728908717204,0.40769147,64866.0,64865.0,0.23125487]
[1728908717424,0.25352847,64866.0,64863.0,0.000823]
[1728908717646,0.11687851,64867.0,64863.0,0.000823]
[1728908717647,0.25352847,64865.0,64863.0,0.000823]
[1728908717904,0.25352847,64865.0,64864.0,0.00842859]
[1728908718394,0.25352847,64865.0,64863.0,0.000823]
[1728908718838,0.25352847,64865.0,64864.0,0.00842859]
[1728908719327,0.25352847,64865.0,64863.0,0.000823]
[1728908719547,0.25952847,64865.0,64864.0,0.00842859]
[1728908719793,0.26752847,64865.0,64864.0,0.00842859]
[1728908720534,0.26752847,64865.0,64863.0,0.000823]
[1728908720535,0.25952847,64865.0,64863.0,0.000823]
[1728908720782,0.25952847,64865.0,64864.0,0.00842859]
[1728908721024,0.25956847,64865.0,64864.0,0.00842859]
[1728908721268,0.25956847,64865.0,64863.0,0.000823]
[1728908721269,0.154168,64864.0,64863.0,0.000823]
[1728908721516,0.40769647,64864.0,64863.0,0.000823]
[1728908721758,0.25352847,64864.0,64863.0,0.00926147]
[1728908722224,0.1,64864.0,64863.0,0.45321098]
[1728908722460,0.00804,64865.0,64864.0,0.154168]
[1728908722704,0.00804,64865.0,64864.0,0.1710576]
[1728908722940,4e-05,64865.0,64864.0,0.17948619]
[1728908723648,4e-05,64865.0,64864.0,0.16793685]
[1728908723879,0.00804,64865.0,64864.0,0.16793685]
[1728908724159,0.18456847,64865.0,64864.0,0.01376885]
[1728908724399,0.28456847,64865.0,64864.0,0.00842859]
[1728908724621,0.26156847,64865.0,64864.0,0.00842859]
[1728908724849,0.1,64864.0,64863.0,0.000823]
[1728908725075,0.25352847,64864.0,64863.0,0.000823]
[1728908725297,0.25352847,64864.0,64863.0,0.00926147]
[1728908725973,0.40769647,64864.0,64863.0,0.000823]
[1728908726210,0.40769647,64864.0,64863.0,0.00926147]
[1728908726455,0.41569647,64864.0,64863.0,0.00926147]
[1728908726703,0.40769647,64864.0,64863.0,0.00926147]
[1728908726942,0.41969647,64864.0,64863.0,0.00926147]
[1728908727189,0.42969647,64864.0,64863.0,0.00926147]
[1728908727643,0.42969647,64864.0,64863.0,0.000823]
[1728908728094,0.27552847,64864.0,64863.0,0.00926147]
[1728908728351,0.41769647,64864.0,64863.0,0.000823]
[1728908728573,0.26352847,64864.0,64863.0,0.000823]
[1728908728796,0.42969647,64864.0,64863.0,0.000823]
[1728908729021,0.41969647,64864.0,64863.0,0.000823]
[1728908729249,0.27952847,64864.0,64863.0,0.000823]
[1728908729684,0.27952847,64864.0,64863.0,0.00926147]
[1728908729953,0.27952847,64864.0,64863.0,0.000823]
[1728908730414,0.45669647,64864.0,64863.0,0.000823]
[1728908733935,0.30252847,64864.0,64863.0,0.000823]
[1728908734185,0.45669647,64864.0,64863.0,0.0006283]
[1728908736289,0.30252847,64864.0,64863.0,0.0006283]
[1728908736775,0.45669647,64864.0,64863.0,0.0006283]
[1728908737712,0.30252847,64864.0,64863.0,0.0006283]
[1728908737942,0.45669647,64864.0,64863.0,0.0006283]
[1728908738184,0.30252847,64864.0,64863.0,0.0006283]
[1728908740701,0.45669647,64864.0,64863.0,0.0006283]
[1728908741401,0.30252847,64864.0,64863.0,0.0006283]
[1728908741858,0.45669647,64864.0,64863.0,0.0006283]
[1728908742325,0.30252847,64864.0,64863.0,0.0006283]
[1728908743018,0.45669647,64864.0,64863.0,0.0006283]
[1728908743235,0.30252847,64864.0,64863.0,0.0006283]
[1728908743505,0.45669647,64864.0,64863.0,0.0006283]
[1728908744412,0.45669647,64864.0,64863.0,0.00597762]
[1728908746055,0.45669647,64864.0,64863.0,0.0006283]
[1728908746690,0.45658601,64864.0,64863.0,0.0006283]
[1728908750006,0.30241801,64864.0,64863.0,0.0006283]
[1728908750235,0.45658601,64864.0,64863.0,0.00906677]
[1728908750462,0.30241801,64864.0,64863.0,0.0006283]
[1728908750710,0.45658601,64864.0,64863.0,0.0006283]
[1728908750915,0.45658601,64864.0,64863.0,0.00906677]
[1728908751145,0.30241801,64864.0,64863.0,0.0006283]
[1728908751383,0.30241801,64864.0,64863.0,0.00597851]
[1728908751384,0.27941801,64864.0,64863.0,0.00597851]
[1728908751601,0.27941801,64864.0,64863.0,0.16858798]
[1728908753352,0.026,64864.0,64863.0,0.16858798]
[1728908753606,0.026,64864.0,64863.0,0.19943673]
[1728908753844,0.027648,64864.0,64863.0,0.18872899]
[1728908754512,0.027648,64864.0,64863.0,0.19943491]
[1728908754758,0.013648,64864.0,64863.0,0.19943491]
[1728908754974,0.015648,64864.0,64863.0,0.19943491]
[1728908755223,0.015648,64864.0,64863.0,0.202169]
[1728908755443,0.015648,64864.0,64863.0,0.37423491]
[1728908755444,0.003648,64864.0,64863.0,0.37423491]
[1728908755670,0.003648,64864.0,64863.0,0.36264848]
[1728908755889,0.003648,64864.0,64863.0,0.37421667]
[1728908756802,0.001648,64864.0,64863.0,0.37421667]
[1728908757244,0.002648,64864.0,64863.0,0.37421667]
[1728908757730,0.002648,64864.0,64863.0,0.39734125]
[1728908758392,0.002648,64864.0,64863.0,0.46671193]
[1728908759297,0.002648,64864.0,64863.0,0.44210122]
[1728908759501,0.002648,64864.0,64863.0,0.40887274]
[1728908759794,0.002648,64864.0,64863.0,0.37418787]
[1728908760028,0.002648,64864.0,64863.0,0.42041835]
[1728908761723,0.002648,64864.0,64863.0,0.5886968]
[1728908761934,0.002648,64864.0,64863.0,0.63492889]
[1728908762160,0.002648,64864.0,64863.0,0.63689886]
[1728908762625,0.002648,64864.0,64863.0,0.53025492]
[1728908763024,0.003648,64864.0,64863.0,0.53025492]
[1728908763256,0.003648,64864.0,64863.0,0.62264269]
[1728908763922,0.002648,64864.0,64863.0,0.62264269]
[1728908764169,0.001648,64864.0,64863.0,0.62261533]